bitfinex/quotes_ETHUSD_20250616
["timestamp","ask_amount","ask_price","bid_price","bid_amount"]
[1750111221915,0.02,2653.9,2653.7,3.76827757]
[1750111222216,0.02,2653.9,2653.8,11.13038607]
[1750111222423,0.02,2653.9,2653.8,11.09270923]
[1750111223022,0.02,2653.9,2653.8,11.64270923]
[1750111224414,0.02,2653.9,2653.8,13.22870923]
[1750111225123,0.02,2653.9,2653.8,13.60847801]
[1750111227734,0.02,2653.9,2653.8,5.88347801]
[1750111227909,0.02,2653.9,2653.8,13.60647801]
[1750111230266,0.02,2654.9,2654.8,3.76676209]
[1750111230421,0.02,2654.9,2654.8,11.0603383]
[1750111231145,0.02,2654.9,2654.8,11.6103383]
[1750111231305,0.02,2654.9,2654.8,4.9233383]
[1750111231505,0.02,2654.9,2654.8,11.0593383]
[1750111233009,0.02,2654.9,2654.8,4.9233383]
[1750111233222,0.02,2654.9,2654.8,4.1434383]
[1750111233423,0.02,2654.9,2654.8,10.2784383]
[1750111233950,0.02,2654.9,2654.8,4.1434383]
[1750111234357,0.02,2654.9,2654.8,10.2784383]
[1750111234565,0.02,2654.9,2654.8,0.37667621]
[1750111234893,0.00814236,2654.9,2654.8,6.135]
[1750111235474,0.00814236,2654.9,2654.8,9.90176209]
[1750111235717,0.00814236,2654.9,2654.8,6.135]
[1750111235983,0.00814236,2654.9,2654.8,6.134]
[1750111236184,0.00814236,2654.9,2654.5,3.76713037]
[1750111236482,0.8194,2654.8,2654.6,6.134]
[1750111236786,0.00814236,2654.9,2654.6,7.12413095]
[1750111236944,0.00814236,2654.9,2654.8,3.76676209]
[1750111237144,0.00814236,2654.9,2654.8,9.90076209]
[1750111240260,0.00814236,2654.9,2654.7,3.76682907]
[1750111240464,0.00814236,2654.9,2654.6,3.76694679]
[1750111240664,0.00814236,2654.9,2654.8,6.134]
[1750111242491,0.00814236,2654.9,2654.5,3.76715183]
[1750111242810,0.00814236,2654.9,2654.6,6.134]
[1750111242811,3.77478674,2654.9,2654.6,6.134]
[1750111242979,3.77478674,2654.9,2654.3,3.76739749]
[1750111242980,3.76676927,2654.8,2654.3,3.76739749]
[1750111243178,10.0,2654.5,2654.1,3.76775554]
[1750111243375,0.8194,2654.4,2653.8,0.37682776]
[1750111243579,0.8194,2654.4,2653.9,9.90203948]
[1750111243775,4.58673092,2654.4,2654.0,6.134]
[1750111243965,3.76754988,2654.3,2653.8,3.76812462]
[1750111244166,3.76768471,2654.2,2653.7,3.76826104]
[1750111244379,3.7674722,2654.3,2653.7,3.76826104]
[1750111244576,3.76776798,2654.1,2653.8,6.134]
[1750111244968,3.76767172,2654.2,2653.8,6.134]
[1750111245161,3.76777891,2654.1,2653.8,6.134]
[1750111245381,3.76795879,2654.0,2653.5,3.76851667]
[1750111245585,10.781,2653.9,2653.8,6.134]
[1750111246025,0.781,2653.9,2653.8,6.134]
[1750111246199,10.781,2653.9,2653.8,6.134]
[1750111246395,10.781,2653.9,2653.7,6.134]
[1750111249036,10.781,2653.9,2652.9,3.7693766]
[1750111249037,10.0,2653.4,2652.9,3.7693766]
[1750111249200,3.76875626,2653.4,2652.7,3.76969001]
[1750111249406,0.7723,2653.5,2652.8,6.135]
[1750111249590,1.585,2653.7,2652.9,3.76941417]
[1750111249790,0.7958,2653.8,2653.5,3.76852168]
[1750111250100,0.7958,2653.8,2653.6,3.76846054]
[1750111250794,4.66048766,2654.1,2653.4,9.9067139]
[1750111250993,10.0,2653.9,2653.5,3.76858082]
[1750111251605,10.0,2654.0,2653.6,3.76840246]
[1750111251906,11.61277014,2654.0,2653.6,3.76840246]
[1750111252107,11.61277014,2654.0,2653.7,3.76832066]
[1750111252423,15.3806739,2654.0,2653.4,9.90669954]
[1750111252588,11.61277014,2654.0,2653.6,3.76846161]
[1750111253006,0.7775,2653.9,2653.5,3.76852602]
[1750111253647,4.54554646,2653.9,2653.4,9.90666049]
[1750111253846,6.53823078,2653.9,2653.4,9.9066818]
[1750111254152,10.0,2653.7,2653.4,9.9066818]
[1750111254445,10.0,2653.7,2653.4,6.138]
[1750111254644,10.0,2653.8,2653.4,9.90669737]
[1750111254811,13.76818852,2653.8,2653.4,6.138]
[1750111255011,10.0,2653.8,2653.4,9.90672088]
[1750111255809,10.0,2653.8,2653.1,3.76910629]
[1750111255810,3.76847553,2653.6,2653.1,3.76910629]
[1750111256012,0.7975,2654.0,2653.3,0.792]
[1750111256336,14.59108029,2654.2,2653.7,3.76824737]
[1750111256511,10.8234,2654.2,2653.8,3.76811721]
[1750111256715,4.59102323,2654.2,2653.8,3.76811721]
[1750111257151,0.8234,2654.2,2653.8,3.76811721]
[1750111258154,0.8234,2654.2,2653.8,3.76818147]
[1750111258454,2.3972,2654.4,2653.8,0.82248117]
[1750111258644,0.8122,2654.4,2654.1,3.76764508]
[1750111259182,0.8122,2654.4,2654.2,3.76760749]
[1750111259830,0.8122,2654.4,2654.1,3.76770856]
[1750111260653,0.8122,2654.4,2653.8,4.55292405]
[1750111261043,0.8122,2654.4,2654.3,3.76747164]
[1750111261760,1.585,2654.5,2654.4,3.76732971]
[1750111262076,0.8191,2654.8,2654.7,3.76690398]
[1750111262437,0.00814236,2654.9,2654.8,3.76676209]
[1750111263025,0.00814236,2654.9,2654.7,3.76683079]
[1750111263262,0.00814236,2654.9,2654.8,3.76676209]
[1750111263468,0.00814236,2654.9,2654.7,3.76689574]
[1750111263469,0.00814236,2654.9,2654.7,3.76690135]
[1750111263762,0.00814236,2654.9,2654.8,3.76676209]
[1750111264191,0.00814236,2654.9,2654.7,3.76682496]
[1750111264366,0.00814236,2654.9,2654.8,3.76676209]
[1750111264726,0.00814236,2654.9,2654.6,3.7670077]
[1750111264931,0.00814236,2654.9,2654.8,3.76676209]
[1750111265554,0.00814236,2654.9,2654.7,0.99170077]
[1750111265875,0.00814236,2654.9,2654.8,3.76676209]
[1750111267444,0.00814236,2654.9,2654.7,4.75859946]
[1750111267645,0.00814236,2654.9,2654.8,3.76676209]
[1750111268968,0.00814236,2654.9,2654.7,4.75852388]
[1750111270893,0.00814236,2654.9,2654.8,3.76676209]
[1750111271245,0.00814236,2654.9,2654.7,0.99170077]
[1750111271444,0.00814236,2654.9,2654.8,3.76676209]
[1750111271968,0.00814236,2654.9,2654.7,4.75853878]
[1750111272790,0.00814236,2654.9,2654.4,0.75348014]
[1750111272990,10.7756,2654.8,2654.5,6.142]
[1750111273171,0.7756,2654.8,2654.5,6.142]
[1750111273490,0.7756,2654.8,2654.5,9.90918466]
[1750111274460,0.7756,2654.8,2654.5,6.142]
[1750111275263,0.7756,2654.8,2654.5,9.90911961]
[1750111276339,0.7756,2654.8,2654.6,3.76703824]
[1750111276569,0.7756,2654.8,2654.5,9.90912661]
[1750111277249,0.7756,2654.8,2654.6,3.76703521]
[1750111277448,0.7756,2654.8,2654.1,2.3614]
[1750111277783,0.7756,2654.8,2654.4,3.76726239]
[1750111277969,0.7756,2654.8,2654.5,9.90818209]
[1750111279309,0.7756,2654.8,2654.5,6.141]
[1750111279310,10.7756,2654.8,2654.5,6.141]
[1750111279657,0.7756,2654.8,2654.5,9.90818345]
[1750111280708,0.7756,2654.8,2654.6,3.76703082]
[1750111280886,0.00814236,2654.9,2654.7,3.76689875]
[1750111281084,0.00814236,2654.9,2654.8,3.76676209]
[1750111281664,0.00814236,2654.9,2654.8,4.60083817]
[1750111282883,0.00814236,2654.9,2654.8,10.73983817]
[1750111283102,0.00814236,2654.9,2654.8,9.90576209]
[1750111284173,0.00814236,2654.9,2654.8,3.76676209]
[1750111284368,4.52753286,2654.9,2654.4,3.76732971]
[1750111284568,10.0,2654.8,2654.4,9.90732971]
[1750111284772,13.76683723,2654.8,2654.3,9.9074287]
[1750111285099,4.52753286,2654.9,2654.6,3.76704588]
[1750111285100,0.00814236,2654.9,2654.6,3.76704588]
[1750111285262,0.00814236,2654.9,2654.8,3.76676209]
[1750111285694,0.00814236,2654.9,2654.7,9.90782797]
[1750111286194,10.0,2654.7,2654.3,3.76738952]
[1750111286499,4.5989722,2654.8,2654.3,6.182]
[1750111286500,0.8322,2654.8,2654.3,6.182]
[1750111286697,3.76704614,2654.6,2654.3,6.182]
[1750111288076,3.76704614,2654.6,2654.2,9.94958866]
[1750111288272,3.76704614,2654.6,2654.0,3.76785476]
[1750111288477,0.826,2654.5,2653.9,3.76797916]
[1750111288679,4.59319692,2654.5,2654.0,9.9498315]
[1750111288961,0.826,2654.5,2654.1,3.76774239]
[1750111289166,0.826,2654.5,2654.0,9.9498701]
[1750111289167,4.59323073,2654.5,2654.0,9.94981706]
[1750111289395,0.826,2654.5,2654.0,6.182]
[1750111289602,4.51747212,2654.7,2654.0,10.64557841]
[1750111289801,3.76714799,2654.6,2654.1,3.76769221]
[1750111291132,3.76720821,2654.5,2654.1,3.76769221]
[1750111291293,10.0,2654.5,2654.1,3.76769221]
[1750111291625,10.0,2654.5,2654.1,9.94769221]
[1750111293317,3.76719753,2654.5,2654.1,6.18]
[1750111293814,13.76712381,2654.6,2654.1,9.94772776]
[1750111294191,3.76719624,2654.5,2654.1,9.94772776]
[1750111294519,3.76719624,2654.5,2654.0,3.76782163]
[1750111294705,3.76719624,2654.5,2654.1,6.179]
[1750111295090,3.76719624,2654.5,2653.9,3.76794818]
[1750111295091,0.7594,2654.3,2653.9,3.76794818]
[1750111295293,0.7594,2654.3,2653.5,3.76857663]
[1750111295294,0.7594,2654.3,2653.5,4.53034986]
[1750111295496,10.0,2654.1,2653.8,6.186]
[1750111295901,13.76785171,2654.1,2653.8,6.186]
[1750111296213,13.76785171,2654.1,2653.7,6.187]
[1750111296520,4.55445163,2653.8,2653.2,0.8282]
[1750111296721,0.7862,2653.8,2653.4,3.76874123]
[1750111296898,0.7862,2653.8,2653.4,5.22403421]
[1750111297092,4.55439467,2653.8,2653.4,1.45529298]
[1750111297409,3.76832659,2653.7,2653.3,3.7688341]
[1750111297718,10.0,2653.6,2653.4,6.187]
[1750111297921,13.7685188,2653.6,2653.4,6.187]
[1750111298221,10.0,2653.6,2653.4,6.187]
[1750111298440,3.76863029,2653.5,2653.0,3.76922014]
[1750111298587,3.76863029,2653.5,2653.1,6.187]
[1750111299087,0.7862,2653.8,2653.1,6.187]
[1750111299399,3.76848355,2653.6,2653.2,3.76901134]
[1750111299598,13.7683961,2653.7,2653.2,3.76901134]
[1750111299809,13.7683961,2653.7,2653.1,6.187]
[1750111299810,10.0,2653.7,2653.1,6.187]
[1750111300016,13.76839353,2653.7,2653.2,3.76892298]
[1750111300237,1.589,2653.7,2653.4,3.76868319]
[1750111300588,1.589,2653.7,2653.5,3.76849931]
[1750111300933,1.589,2653.7,2653.4,3.7686684]
[1750111303222,15.38103975,2653.9,2653.4,3.7686684]
[1750111303422,15.38103975,2653.9,2653.5,3.76859922]
[1750111305389,15.38103975,2653.9,2653.4,3.76866979]
[1750111307534,10.0,2653.8,2653.1,3.76910262]
[1750111307707,0.8006,2653.3,2652.7,0.7717]
[1750111307887,16.18257503,2653.3,2652.7,4.5413859]
[1750111308094,16.18257503,2653.3,2652.8,3.76953062]
[1750111308316,3.76905547,2653.2,2652.7,4.22380929]
[1750111308529,3.76905547,2653.2,2652.5,4.541665]
[1750111308530,10.0,2652.9,2652.5,4.541665]
[1750111308902,10.0,2652.9,2652.5,3.769965]
[1750111309105,0.7656,2652.7,2652.3,3.77023341]
[1750111309417,3.76953197,2652.9,2652.3,4.60446796]
[1750111309733,10.0,2653.0,2652.3,0.83415881]
[1750111309734,0.7656,2653.0,2652.3,0.83415881]
[1750111309933,0.7656,2653.0,2652.6,3.76978625]
[1750111310233,2.3786,2653.0,2652.6,3.76978625]
[1750111311391,0.7656,2653.0,2652.8,3.76950611]
[1750111311596,1.613,2653.5,2652.9,0.7955]
[1750111311849,1.613,2653.5,2653.2,3.76899745]
[1750111312941,1.613,2653.5,2653.4,3.76874952]
[1750111313144,1.613,2653.5,2653.4,4.56424952]
[1750111314847,1.613,2653.5,2653.3,3.76882252]
[1750111315032,1.613,2653.5,2653.2,4.55655212]
[1750111315234,1.613,2653.5,2653.2,3.76895212]
[1750111316357,0.764,2653.4,2652.8,0.7706]
[1750111316653,0.764,2653.4,2653.0,3.76922631]
[1750111317056,0.764,2653.4,2653.1,3.76906042]
[1750111317558,0.764,2653.4,2653.0,3.76925258]
[1750111317922,0.764,2653.4,2653.1,3.7690515]
[1750111319956,0.764,2653.4,2653.0,3.76924883]
[1750111320969,0.764,2653.4,2653.1,3.76916271]
[1750111322848,1.613,2653.5,2653.4,3.76874952]
[1750111323368,1.613,2653.9,2653.5,3.76852419]
[1750111324173,1.613,2653.9,2653.5,3.7685532]
[1750111324575,1.613,2653.9,2653.6,3.76835142]
[1750111325136,1.613,2653.9,2653.6,3.76846548]
[1750111325979,1.613,2653.9,2653.5,0.03768451]
[1750111326273,10.0,2654.0,2653.9,3.76803948]
[1750111326598,3.76742555,2654.4,2653.8,3.76806753]
[1750111326599,0.776,2654.5,2654.2,3.76747942]
[1750111326737,1.613,2654.6,2654.4,3.76732971]
[1750111327073,1.613,2654.6,2654.5,3.76718779]
[1750111327475,1.613,2654.6,2654.3,0.8011]
[1750111327476,1.613,2654.8,2654.7,3.76683248]
[1750111327694,0.78414236,2654.9,2654.7,3.76683248]
[1750111327835,0.00814236,2654.9,2654.7,3.76683248]
[1750111328592,0.00814236,2654.9,2654.6,3.76698832]
[1750111328795,0.00814236,2654.9,2654.7,3.76688061]
[1750111329462,0.00814236,2654.9,2654.6,3.76696716]
[1750111329661,0.00814236,2654.9,2654.5,3.76714954]
[1750111329898,0.00814236,2654.9,2654.6,3.76702693]
[1750111332098,0.00814236,2654.9,2654.4,3.76732971]
[1750111332272,0.00814236,2654.9,2654.5,3.76716477]
[1750111334905,10.0,2654.8,2654.4,4.60084408]
[1750111335202,10.0,2654.8,2654.5,3.76717597]
[1750111336310,10.0,2654.8,2654.6,3.76701835]
[1750111336508,10.0,2654.8,2654.5,3.76713325]
[1750111338003,13.76677571,2654.8,2654.4,0.83358432]
[1750111338199,13.76677571,2654.8,2654.4,4.60089793]
[1750111338381,10.0,2654.8,2654.4,4.60089793]
[1750111339470,10.0,2654.8,2654.5,3.76717765]
[1750111340313,10.0,2654.8,2654.4,4.60084588]
[1750111341190,10.0,2654.8,2654.5,3.76717586]
[1750111341390,10.00814236,2654.9,2654.4,4.60084752]
[1750111341593,13.77483859,2654.9,2654.4,0.83358432]
[1750111341978,13.77483859,2654.9,2654.5,3.76717323]
[1750111342173,13.77483859,2654.9,2654.4,4.60084361]
[1750111342378,13.77483859,2654.9,2654.5,3.76718217]
[1750111344420,9.33468683,2654.6,2654.1,3.76761666]
[1750111344715,3.76728694,2654.5,2654.1,9.93069892]
[1750111345080,9.33467315,2654.6,2654.2,3.76760016]
[1750111345580,5.56758198,2654.6,2654.2,3.76760016]
[1750111345922,9.33463721,2654.6,2654.1,9.93070497]
[1750111346215,6.32958198,2654.7,2653.8,0.7728]
[1750111346396,3.76734162,2654.4,2653.9,3.76803948]
[1750111346597,3.76734162,2654.4,2653.9,9.93003948]
[1750111347433,10.0,2654.4,2654.0,3.76788873]
[1750111347609,10.0,2654.4,2654.1,3.76775149]
[1750111348326,15.56758198,2654.4,2654.0,3.76781967]
[1750111350332,15.56758198,2654.4,2654.1,3.7677473]
[1750111350544,10.0,2654.4,2654.2,3.76758384]
[1750111350745,3.76677972,2654.8,2654.2,3.76758384]
[1750111350746,0.00814236,2654.9,2654.7,3.76682978]
[1750111350913,0.00814236,2654.9,2654.8,3.76676209]
[1750111351114,0.00814236,2654.9,2654.8,9.93976209]
[1750111351438,0.00814236,2654.9,2654.8,11.31042128]
[1750111351823,0.00814236,2654.9,2654.8,17.70810326]
[1750111352023,0.00814236,2654.9,2654.8,5.96752128]
[1750111352224,0.00814236,2654.9,2654.8,9.94576209]
[1750111352747,0.00814236,2654.9,2654.8,10.77586209]
[1750111355472,0.00814236,2654.9,2654.8,11.32586209]
[1750111356318,0.00814236,2654.9,2654.8,11.69609709]
[1750111358656,0.00814236,2654.9,2654.8,4.59686209]
[1750111358865,0.00814236,2654.9,2654.8,10.77686209]
[1750111359016,0.00814236,2654.9,2654.8,18.10587155]
[1750111359219,0.00814236,2654.9,2654.8,12.53828957]
[1750111359523,0.00814236,2654.9,2654.8,4.60313164]
[1750111359731,0.00814236,2654.9,2654.8,9.95876209]
[1750111360316,0.00814236,2654.9,2654.8,3.76676209]
[1750111360549,0.00814236,2654.9,2654.8,9.95876209]
[1750111361561,0.7611,2654.8,2654.5,3.76706771]
[1750111361733,0.7611,2654.8,2654.6,9.95703685]
[1750111362258,0.7611,2654.8,2654.6,9.95698682]
[1750111362820,0.7611,2654.8,2654.6,6.194]
[1750111363035,10.7611,2654.8,2654.6,6.194]
[1750111363656,2.21469292,2654.8,2654.0,0.7544]
[1750111363843,3.76696693,2654.7,2654.2,3.76759054]
[1750111364156,0.7917,2654.4,2653.9,3.76791198]
[1750111364359,0.7917,2654.4,2653.5,0.79207719]
[1750111364657,0.7917,2654.4,2653.7,3.76819949]
[1750111364658,3.76747164,2654.3,2653.7,3.76819949]
[1750111364961,2.78390828,2654.3,2653.9,3.76803744]
[1750111365159,2.78390828,2654.3,2654.0,0.31453753]
[1750111365315,6.55139733,2654.3,2654.0,0.31453753]
[1750111365860,2.78390828,2654.3,2654.0,0.31453753]
[1750111366070,5.22039212,2654.8,2654.0,0.31453753]
[1750111366071,0.7613,2654.8,2654.3,3.76747164]
[1750111366249,0.7613,2654.8,2654.5,3.76706243]
[1750111366434,0.7613,2654.8,2654.4,3.76731054]
[1750111366435,0.7613,2654.8,2654.6,3.76703918]
[1750111366760,1.62714236,2654.9,2654.8,3.76676209]
[1750111367676,1.62714236,2654.9,2653.9,0.812]
[1750111367824,1.62714236,2654.9,2653.6,0.55]
[1750111367825,0.7891,2654.5,2654.0,3.76787615]
[1750111368019,0.7891,2654.8,2654.1,0.8302745]
[1750111368250,0.7891,2654.8,2653.3,11.619]
[1750111368561,10.0,2654.4,2654.0,3.76781309]
[1750111368787,10.7774,2654.7,2654.0,9.98088846]
[1750111368919,10.7774,2654.7,2654.1,0.802]
[1750111368920,6.16333454,2654.7,2654.1,0.802]
[1750111369125,10.0,2654.6,2654.0,3.76789236]
[1750111369471,13.76718506,2654.6,2654.2,6.214]
[1750111369672,1.99305196,2654.5,2654.2,6.214]
[1750111370279,13.76718506,2654.6,2654.2,9.98161178]
[1750111370431,0.7774,2654.7,2654.2,6.214]
[1750111370638,0.7774,2654.7,2654.4,3.76726271]
[1750111371535,3.76727843,2654.5,2653.8,0.802]
[1750111371771,0.7774,2654.7,2654.3,3.76740509]
[1750111371953,0.77494236,2654.9,2654.4,0.41441296]
[1750111372183,3.76726339,2654.5,2654.0,3.76782753]
[1750111372494,0.8236,2654.4,2653.7,4.57050426]
[1750111372699,0.8236,2654.4,2653.8,6.229]
[1750111372899,1.619,2654.6,2653.9,3.76803948]
[1750111373215,1.619,2654.6,2654.3,3.76739011]
[1750111374020,0.8236,2654.7,2654.3,3.76739011]
[1750111374168,10.8236,2654.7,2654.3,3.76739139]
[1750111374506,10.8236,2654.7,2654.3,3.76744965]
[1750111375687,0.00814236,2654.9,2654.3,0.75350425]
[1750111375902,10.0,2654.7,2654.3,0.75350425]
[1750111376071,10.0,2654.8,2654.4,3.76725045]
[1750111376267,0.00814236,2654.9,2654.5,3.76718779]
[1750111376472,10.00814236,2654.9,2654.5,3.76718779]
[1750111376912,0.00814236,2654.9,2654.6,6.26366834]
[1750111377220,0.00814236,2654.9,2654.6,6.226]
[1750111377522,0.7574,2654.8,2654.3,4.67]
[1750111377728,13.76713104,2654.6,2654.2,6.227]
[1750111378025,10.0,2654.6,2654.2,6.227]
[1750111378176,10.0,2654.6,2654.2,9.99454123]
[1750111379007,10.0,2654.6,2654.2,6.229]
[1750111379193,13.76697532,2654.7,2654.2,6.229]
[1750111379508,16.17148114,2654.7,2654.2,9.99653801]
[1750111379672,12.40450582,2654.7,2654.3,3.76741926]
[1750111379868,1.619,2654.8,2654.3,0.03767488]
[1750111380082,0.00814236,2654.9,2654.7,3.76690398]
[1750111380515,0.8096,2654.8,2654.2,6.226]
[1750111380673,0.8096,2654.8,2654.6,3.7669813]
[1750111381278,0.00814236,2654.9,2654.6,3.76698971]
[1750111382075,0.00814236,2654.9,2654.7,3.76690317]
[1750111382277,0.00814236,2654.9,2654.6,3.7669716]
[1750111383382,10.00814236,2654.9,2654.5,3.76711333]
[1750111383978,0.00814236,2654.9,2654.6,3.76703538]
[1750111384179,0.00814236,2654.9,2654.2,6.226]
[1750111384379,0.00814236,2654.9,2654.5,3.76709578]
[1750111385418,8.68014053,2654.8,2654.1,4.67]
[1750111385615,10.0,2654.6,2654.2,3.76752062]
[1750111385937,10.0,2654.6,2654.1,3.76766953]
[1750111385938,10.0,2654.7,2654.3,3.76745494]
[1750111386133,0.7866,2654.8,2654.0,6.223]
[1750111386433,10.0,2654.7,2653.8,0.7681]
[1750111386626,0.7595,2654.7,2653.9,6.236]
[1750111386802,0.7595,2654.7,2654.4,3.76729436]
[1750111387147,10.7595,2654.7,2654.3,3.76739098]
[1750111387505,10.7595,2654.7,2654.2,3.76758408]
[1750111387506,10.7595,2654.7,2653.9,10.00400237]
[1750111387690,10.7595,2654.7,2654.4,3.76731589]
[1750111388025,0.7595,2654.7,2654.4,3.76723169]
[1750111389023,0.7595,2654.7,2654.5,3.7671619]
[1750111389227,0.7595,2654.7,2654.4,3.76724612]
[1750111390351,4.52642377,2654.7,2654.0,1.07721024]
[1750111390506,10.7595,2654.7,2654.2,3.76761359]
[1750111390707,10.7595,2654.7,2654.4,3.76732141]
[1750111391608,10.7595,2654.7,2654.3,3.76739715]
[1750111391907,10.7595,2654.7,2654.4,3.76729956]
[1750111392412,10.7595,2654.7,2654.0,4.84509571]
[1750111392629,10.7595,2654.7,2654.1,1.10810957]
[1750111392953,10.0,2654.7,2654.5,3.76712687]
[1750111394746,10.0,2654.7,2654.4,3.76727027]
[1750111395450,10.0,2654.7,2654.6,3.76704588]
[1750111395761,0.00814236,2654.9,2654.7,3.76679296]
[1750111396130,0.00814236,2654.9,2654.8,3.76676209]
[1750111397305,0.00814236,2654.9,2654.8,4.60285853]
[1750111398063,0.00814236,2654.9,2654.8,4.64052082]
[1750111398422,0.00814236,2654.9,2654.8,5.94672082]
[1750111398628,0.00814236,2654.9,2654.8,10.57905853]
[1750111400551,0.00814236,2654.9,2654.8,10.02905853]
[1750111401464,0.00814236,2654.9,2654.8,16.25505853]
[1750111401758,0.00814236,2654.9,2654.8,16.80505853]
[1750111404056,0.00814236,2654.9,2654.8,26.80505853]
[1750111406421,0.00814236,2654.9,2654.8,28.43705853]
[1750111410355,0.00814236,2654.9,2654.8,28.45105853]
[1750111410734,0.00814236,2654.9,2654.8,22.21705853]
[1750111410933,0.00814236,2654.9,2654.8,11.66705853]
[1750111411134,0.00814236,2654.9,2654.8,17.14485853]
[1750111413862,0.00814236,2654.9,2654.8,17.14185853]
[1750111414065,0.00814236,2654.9,2654.8,16.30576209]
[1750111416480,0.00814236,2654.9,2654.8,11.63576209]
[1750111418157,0.00814236,2654.9,2654.8,12.41236209]
[1750111418671,0.00814236,2654.9,2654.8,22.96236209]
[1750111422292,0.00814236,2654.9,2654.8,27.63236209]
[1750111422475,0.02,2655.9,2654.8,27.63236209]
[1750111422476,0.02,2655.9,2655.8,5.14204377]
[1750111422659,0.02,2655.9,2655.8,13.04968437]
[1750111422987,0.02,2655.9,2655.8,13.01204377]
[1750111424488,0.02,2655.9,2655.8,23.01204377]
[1750111427569,0.02,2655.9,2655.8,16.78004377]
[1750111427795,0.02,2655.9,2655.8,24.24497419]
[1750111428110,0.02,2655.9,2655.8,24.79497419]
[1750111429163,0.02,2655.9,2655.8,24.24497419]
[1750111429368,0.02,2655.9,2655.8,24.79497419]
[1750111429850,0.02,2655.9,2655.8,24.24497419]
[1750111430251,0.02,2655.9,2655.8,24.79497419]
[1750111430451,0.02,2655.9,2655.8,24.24497419]
[1750111430652,0.02,2655.9,2655.8,24.79497419]
[1750111434804,0.02,2655.9,2655.8,16.38097419]
[1750111435015,0.02,2655.9,2655.8,23.41427419]
[1750111435608,0.02,2655.9,2655.8,13.41427419]
[1750111436181,0.02,2655.9,2655.8,5.55427419]
[1750111436397,0.02,2655.9,2655.8,3.76534377]
[1750111436923,0.02,2655.9,2655.8,9.98634377]
[1750111437627,0.02,2655.9,2655.7,3.7653805]
[1750111437773,0.02,2655.9,2655.8,9.98634377]
[1750111439315,0.8338,2655.9,2655.3,11.7240314]
[1750111439512,0.8338,2655.9,2655.7,3.76541035]
[1750111439679,0.8338,2655.9,2655.8,6.221]
[1750111440211,0.8138,2655.8,2655.6,3.76560783]
[1750111440418,0.8138,2655.8,2655.7,6.219]
[1750111440823,0.8138,2655.8,2655.4,5.40584733]
[1750111440971,0.8138,2655.8,2655.5,9.98476328]
[1750111441635,0.8232,2655.7,2655.4,3.76581149]
[1750111441797,0.8232,2655.7,2655.5,6.218]
[1750111442636,0.8232,2655.7,2655.3,3.76599267]
[1750111442802,0.8232,2655.7,2655.4,6.218]
[1750111443201,0.8232,2655.7,2655.5,3.76570756]
[1750111443403,0.8232,2655.7,2655.5,3.76576915]
[1750111443632,0.8232,2655.7,2655.6,9.98562735]
[1750111444131,0.8232,2655.7,2655.6,6.22]
[1750111444309,0.8232,2655.7,2655.6,9.98562735]
[1750111445343,0.02,2655.9,2655.8,3.76534377]
[1750111445541,0.02,2655.9,2655.8,9.98634377]
[1750111445542,0.8482,2655.9,2655.8,9.98634377]
[1750111448333,0.8482,2655.9,2655.8,11.36152418]
[1750111448517,0.02,2655.9,2655.8,11.36152418]
[1750111451444,0.02,2655.9,2655.8,9.98634377]
[1750111451629,0.02,2655.9,2655.8,9.98034377]
[1750111452255,0.02,2655.9,2655.8,15.14584377]
[1750111452451,0.02,2655.9,2655.8,22.99984377]
[1750111455511,0.02,2655.9,2655.8,27.66170141]
[1750111455738,0.02,2655.9,2655.8,30.80441759]
[1750111461531,0.02,2655.9,2655.8,30.80841759]
[1750111465364,0.66666667,2656.4,2656.0,7.53012048]
[1750111465667,0.66666667,2656.4,2656.3,4.31463501]
[1750111465836,0.66666667,2656.4,2656.3,10.52463501]
[1750111466036,0.66666667,2656.4,2656.3,13.03270377]
[1750111469892,0.66666667,2656.4,2656.3,17.67456141]
[1750111475147,0.66666667,2656.4,2656.3,19.30956141]
[1750111475691,0.66666667,2656.4,2656.3,12.54956141]
[1750111475862,0.66666667,2656.4,2656.3,18.74656141]
[1750111477080,0.66666667,2656.4,2656.3,16.23849265]
[1750111480094,0.66666667,2656.4,2656.3,16.23549265]
[1750111480293,0.66666667,2656.4,2656.3,5.39963501]
[1750111480456,0.66666667,2656.4,2656.3,11.59263501]
[1750111486665,0.66666667,2656.4,2656.3,11.58663501]
[1750111488395,0.66666667,2656.4,2656.3,9.95163501]
[1750111489670,1.46406667,2656.4,2656.3,3.76463501]
[1750111489871,1.46406667,2656.4,2656.3,9.94863501]
[1750111492717,1.46406667,2656.4,2656.3,3.76463501]
[1750111492885,3.78379829,2656.9,2656.2,3.76473058]
[1750111492886,0.7984,2656.3,2656.2,3.76473058]
[1750111493092,6.35504005,2656.3,2656.2,9.94873058]
[1750111493488,5.55664005,2656.3,2656.1,3.76483505]
[1750111493688,6.37274005,2656.3,2656.2,9.95077674]
[1750111494319,6.37274005,2656.3,2656.2,6.186]
[1750111494496,7.01001406,2656.3,2656.2,6.186]
[1750111497313,7.01001406,2656.3,2656.1,3.76485038]
[1750111497619,7.01001406,2656.3,2656.2,6.18]
[1750111498529,7.01001406,2656.3,2655.1,0.7863]
[1750111498530,0.8317,2656.1,2655.1,0.7863]
[1750111498694,0.8317,2656.1,2655.2,6.63627783]
[1750111498893,0.8317,2656.1,2656.0,3.76506024]
[1750111499311,0.8317,2656.1,2655.9,9.94812318]
[1750111499812,0.8317,2656.1,2656.0,3.76506024]
[1750111508656,5.55664005,2656.5,2655.9,9.94819841]
[1750111508811,10.0,2656.6,2656.0,4.75986195]
[1750111509146,5.57664005,2656.9,2656.7,3.76399912]
[1750111509305,0.7945,2656.8,2656.7,9.93799912]
[1750111512460,0.7945,2656.8,2656.7,6.174]
[1750111512619,6.35114005,2656.8,2656.7,6.174]
[1750111512820,6.35114005,2656.8,2656.7,9.9380682]
[1750111514992,6.35114005,2656.8,2656.1,4.64185764]
[1750111515106,5.55664005,2656.4,2656.3,3.76450783]
[1750111515305,5.55664005,2656.4,2656.3,9.93450783]
[1750111515528,5.55664005,2656.6,2656.4,3.76442602]
[1750111515734,5.55664005,2656.6,2656.5,6.17]
[1750111516541,5.55664005,2656.6,2656.5,9.93435159]